bitfinex/quotes_ETHUSD_20260214
["timestamp","ask_amount","ask_price","bid_price","bid_amount"]
[1771046221707,3.71323669,2055.6,2054.9,0.45491392]
[1771046221909,3.71323669,2055.6,2055.1,0.45491392]
[1771046222232,2.497,2055.6,2055.1,0.45491392]
[1771046222436,3.71319174,2055.6,2055.1,0.45491392]
[1771046222933,1.21619174,2055.6,2055.1,0.45491392]
[1771046223133,3.71316224,2055.7,2055.1,0.45491392]
[1771046225035,3.71316224,2055.7,2055.1,1.67138666]
[1771046225644,3.71316224,2055.7,2055.1,1.66533301]
[1771046230240,2.497,2055.7,2055.2,0.45491392]
[1771046232235,2.497,2055.7,2055.3,1.21636744]
[1771046232813,2.497,2055.7,2055.2,1.67129562]
[1771046234839,3.71313683,2055.7,2055.2,1.67129562]
[1771046235937,3.71313683,2055.7,2055.1,1.21643954]
[1771046236136,14.82902213,2055.7,2054.9,4.86631167]
[1771046236439,0.45443276,2055.6,2055.0,0.45491392]
[1771046237236,1.21624908,2055.5,2055.0,1.67142147]
[1771046239943,1.67066581,2055.6,2055.0,1.67142147]
[1771046254342,3.71317263,2055.7,2055.1,0.47207793]
[1771046254743,2.497,2055.7,2055.1,11.135305]
[1771046254953,3.7141931,2055.8,2055.2,0.47207793]
[1771046255148,2.4981,2055.8,2055.2,0.47207793]
[1771046255322,3.71417202,2055.8,2055.2,0.47207793]
[1771046260260,3.71417202,2055.8,2055.3,1.21636744]
[1771046260435,3.71417202,2055.8,2055.3,1.71077007]
[1771046261049,2.4981,2055.8,2055.4,0.49440263]
[1771046261235,0.0011,2055.8,2055.4,0.49440263]
[1771046262325,0.0011,2055.8,2055.5,1.71065171]
[1771046267762,0.0011,2055.8,2055.4,1.21626499]
[1771046277561,0.47754813,2055.8,2055.3,2.497]
[1771046277944,0.47754813,2055.8,2055.2,1.21638802]
[1771046278246,0.0011,2055.8,2055.2,1.71079065]
[1771046279072,0.47754813,2055.8,2055.2,1.71079065]
[1771046281592,0.0011,2055.8,2055.2,1.71079065]
[1771046282095,0.0011,2055.8,2055.3,0.4634668]
[1771046282647,0.0011,2055.8,2055.3,0.4624668]
[1771046283888,0.0011,2055.8,2055.4,1.21630826]
[1771046284198,0.0011,2055.8,2055.4,1.67977506]
[1771046284677,0.0011,2055.8,2055.5,0.4634668]
[1771046286380,0.0011,2055.8,2055.5,1.67869004]
[1771046299396,0.0011,2055.8,2055.5,1.21622324]
[1771046306375,0.0011,2055.8,2055.5,1.67969004]
[1771046307103,0.0011,2055.8,2055.5,1.21622324]
[1771046320809,0.0011,2055.8,2055.6,0.48493114]
[1771046321215,0.0011,2055.8,2055.5,1.21622324]
[1771046324916,0.0011,2055.8,2055.5,1.70115438]
[1771046325106,0.0011,2055.8,2055.6,0.48493114]
[1771046325314,0.0011,2055.8,2055.5,1.21622324]
[1771046330624,0.0011,2055.9,2055.5,1.70115438]
[1771046330802,0.0011,2055.9,2055.5,1.21622324]
[1771046335201,0.0011,2055.9,2055.5,3.71322324]
[1771046337227,0.45220213,2056.3,2055.6,0.48493114]
[1771046337413,0.45220213,2056.3,2055.7,0.48493114]
[1771046339328,0.0011,2056.2,2055.8,1.2160716]
[1771046339915,0.0011,2056.2,2055.8,1.70100274]
[1771046341230,0.0011,2056.2,2055.8,1.2160716]
[1771046341435,0.0011,2056.2,2055.7,4.8642864]
[1771046343909,0.0011,2056.2,2055.7,1.21613075]
[1771046345336,0.45982111,2056.2,2055.6,3.71314855]
[1771046348136,1.67569158,2056.2,2055.6,3.71314855]
[1771046348343,0.45872111,2056.1,2055.6,3.71314855]
[1771046351438,1.21592338,2056.1,2055.6,3.71314855]
[1771046351646,0.45872111,2056.0,2055.6,3.71314855]
[1771046354334,1.67569461,2056.2,2055.6,3.71314855]
[1771046354642,0.45872111,2056.1,2055.6,3.71314855]
[1771046356446,0.45872111,2056.1,2055.6,3.71214855]
[1771046357945,1.67462285,2056.1,2055.6,3.71214855]
[1771046359446,1.67462285,2056.1,2055.6,3.71114855]
[1771046362255,0.45872111,2056.1,2055.6,3.71114855]
[1771046363149,1.21697515,2056.2,2055.6,4.18072944]
[1771046363451,0.0011,2056.2,2055.6,4.18072944]
[1771046364150,1.21694015,2056.2,2055.6,4.18072944]
[1771046364350,1.61566126,2056.2,2055.6,3.71114855]
[1771046367249,0.45872111,2056.1,2055.6,3.71114855]
[1771046369151,0.45872111,2056.1,2055.6,2.497]
[1771046369350,1.67473356,2055.9,2055.3,3.71433699]
[1771046369555,0.45872111,2055.9,2055.3,3.71433699]
[1771046372760,1.6747504,2055.9,2055.3,3.71433699]
[1771046375152,0.47326204,2055.8,2055.3,3.71433699]
[1771046375359,5.33662698,2056.2,2055.4,0.48698176]
[1771046375756,0.47326204,2056.1,2055.4,0.48698176]
[1771046377464,1.68921534,2056.0,2055.4,1.70323992]
[1771046384451,0.47326204,2056.0,2055.4,1.70323992]
[1771046387250,1.68921737,2056.0,2055.4,1.70323992]
[1771046390370,0.47326204,2056.0,2055.4,1.70323992]
[1771046390563,1.6892211,2056.0,2055.4,1.70323992]
[1771046392870,5.34850572,2056.2,2055.4,1.70323992]
[1771046393068,0.48507217,2056.1,2055.4,1.70323992]
[1771046393370,1.21583503,2056.2,2055.5,0.49846563]
[1771046393671,1.21583503,2056.2,2055.6,0.49846563]
[1771046393843,1.7009072,2056.2,2055.4,1.21625816]
[1771046394045,0.48507217,2056.1,2055.4,1.71472379]
[1771046394448,0.48507217,2056.1,2055.5,0.49846563]
[1771046394654,0.48507217,2056.1,2055.4,1.21625816]
[1771046395065,1.2159533,2056.0,2055.4,1.71472379]
[1771046400072,1.70102547,2056.0,2055.4,1.71472379]
[1771046400484,1.70102547,2056.0,2055.4,1.21625816]
[1771046400665,0.48507217,2055.9,2055.4,1.21625816]
[1771046401681,1.2159533,2056.0,2055.4,1.71602621]
[1771046401884,1.70252614,2056.0,2055.4,1.71602621]
[1771046402080,1.21593123,2056.1,2055.5,0.49976805]
[1771046404888,1.21593123,2056.1,2055.6,1.21618992]
[1771046406090,1.21593123,2056.1,2055.5,1.71596922]
[1771046406288,1.70250407,2056.1,2055.5,1.71596922]
[1771046410189,11.14551162,2056.0,2055.3,3.71433763]
[1771046410488,0.48657284,2055.9,2055.3,3.71433763]
[1771046411467,0.48657284,2055.9,2055.3,2.498]
[1771046412999,0.48657284,2055.9,2055.3,0.001]
[1771046413000,0.48657284,2055.7,2055.3,0.001]
[1771046415672,1.70276276,2055.6,2055.3,0.001]
[1771046417802,0.48657284,2055.5,2055.3,0.001]
[1771046418504,1.21618992,2055.6,2055.3,0.001]
[1771046418877,1.70276276,2055.6,2055.3,0.001]
[1771046419519,0.48657284,2055.5,2055.3,0.001]
[1771046419878,1.21628103,2055.5,2055.3,0.001]
[1771046425727,5.35147529,2055.6,2055.3,0.001]
[1771046425728,4.86464512,2055.7,2055.3,0.001]
[1771046426036,2.497,2055.7,2055.3,0.50076805]
[1771046429405,2.497,2055.7,2055.3,1.71612438]
[1771046429696,3.71313789,2055.7,2055.3,0.49976805]
[1771046430897,2.497,2055.7,2055.4,0.49976805]
[1771046431106,1.21610442,2055.8,2055.4,0.49976805]
[1771046432023,4.86407861,2055.9,2055.4,0.49976805]
[1771046432415,4.86407861,2055.9,2055.2,1.69201251]
[1771046432416,5.36122459,2055.9,2055.2,1.69201251]
[1771046432725,5.36122459,2055.9,2055.2,1.69101251]
[1771046438628,5.36122459,2055.9,2055.1,4.86683844]
[1771046438629,5.36122459,2055.9,2055.3,0.47463418]
[1771046441220,5.36122459,2055.9,2055.2,1.21636923]
[1771046441221,0.46514845,2055.8,2055.2,1.21636923]
[1771046441631,0.46514845,2055.8,2055.1,1.67309501]
[1771046441927,0.46514845,2055.8,2055.1,0.45665518]
[1771046443132,0.46514845,2055.8,2055.1,0.001]
[1771046443930,1.6812792,2055.7,2055.1,0.001]
[1771046446540,1.21613075,2055.7,2055.1,0.45665518]
[1771046448742,0.46514845,2055.8,2055.1,1.67311145]
[1771046449641,1.21601245,2055.9,2055.2,0.45565518]
[1771046450324,1.6811609,2055.9,2055.2,0.45565518]
[1771046450846,1.6811609,2055.9,2055.3,0.45565518]
[1771046455820,1.6811609,2055.9,2055.3,1.67201713]
[1771046457456,3.71298421,2056.0,2055.4,0.45565518]
[1771046457929,4.17813266,2056.0,2055.4,1.67194638]
[1771046462036,3.71298421,2056.0,2055.4,1.67194638]
[1771046462238,3.71298421,2056.0,2055.5,0.47655486]
[1771046465453,2.497,2056.0,2055.6,0.47655486]
[1771046466558,3.71295523,2056.0,2055.6,0.47655486]
[1771046468558,3.71295523,2056.0,2055.4,1.6928244]
[1771046470158,3.71295523,2056.0,2055.5,0.47655486]
[1771046489466,3.71295523,2056.0,2055.5,1.69279879]
[1771046490191,3.71295523,2056.0,2055.6,0.47655486]
[1771046492995,1.21593868,2056.1,2055.6,0.47655486]
[1771046494981,4.86453223,2056.2,2055.6,0.47655486]
[1771046496294,4.86453223,2056.2,2055.7,0.48215601]
[1771046496295,0.0011,2056.2,2055.7,0.48215601]
[1771046496499,0.0011,2056.2,2055.8,0.48215601]
[1771046497079,0.0011,2056.2,2055.9,0.48215601]
[1771046502404,0.0011,2056.2,2055.9,0.48115601]
[1771046505294,0.0011,2056.2,2055.9,0.48015601]
[1771046508290,0.49454876,2056.2,2055.5,1.21624355]
[1771046508497,0.49454876,2056.2,2055.5,1.68250044]
[1771046509581,0.49454876,2056.2,2055.6,0.46625689]
[1771046510807,0.49454876,2056.2,2055.6,1.68240807]
[1771046510808,1.71044165,2056.2,2055.6,1.68240807]
[1771046515125,0.0011,2056.2,2055.6,1.68240807]
[1771046515415,0.0011,2056.2,2055.7,0.46625689]
[1771046515635,0.0011,2056.2,2055.8,0.46625689]
[1771046518417,0.0011,2056.2,2055.8,1.68230388]
[1771046521449,0.0011,2056.2,2055.9,0.49600937]
[1771046524661,0.0011,2056.2,2055.9,1.71200776]
[1771046531849,0.0011,2056.2,2055.9,1.21599839]
[1771046532348,0.0011,2056.2,2055.8,4.20803507]
[1771046534027,0.0011,2056.2,2055.8,2.496]
[1771046534230,0.47297825,2056.2,2055.8,2.496]
[1771046536063,0.47297825,2056.2,2055.7,1.21610941]
[1771046536962,1.6888517,2056.2,2055.6,1.21718992]
[1771046537329,0.47297825,2056.2,2055.6,1.21718992]
[1771046538626,0.47297825,2056.2,2055.6,1.71319929]
[1771046540064,0.0011,2056.2,2055.7,0.49600937]
[1771046540563,0.0011,2056.2,2055.6,1.71319929]
[1771046540928,0.0011,2056.2,2055.7,10.65663917]
[1771046543363,0.0011,2056.2,2055.8,1.2160716]
[1771046544164,0.0011,2056.2,2056.0,0.49600937]
[1771046544466,0.0011,2056.4,2056.1,10.65663917]
[1771046545462,0.0011,2056.4,2056.1,11.8724921]
[1771046550166,0.0011,2056.4,2056.0,1.71191513]
[1771046556582,0.0011,2056.4,2056.1,0.48879566]
[1771046557053,0.0011,2056.4,2056.0,1.21590576]
[1771046557647,0.0011,2056.4,2056.0,1.70470142]
[1771046558087,0.0011,2056.4,2056.1,0.48879566]
[1771046558385,0.0011,2056.5,2056.1,0.48879566]
[1771046560585,0.0011,2056.5,2056.2,1.21583503]
[1771046562692,0.0011,2056.6,2056.2,1.66597024]
[1771046563279,0.0011,2056.6,2056.2,1.21583503]
[1771046563990,0.0011,2056.6,2056.2,3.71183503]
[1771046566690,0.0011,2056.6,2056.2,4.16197024]
[1771046568174,0.0011,2056.6,2056.3,0.45013521]
[1771046568392,0.0011,2056.7,2056.3,0.45013521]
[1771046568788,0.0011,2056.7,2056.2,3.71183503]
[1771046568983,0.0011,2056.7,2056.2,4.16197024]
[1771046573505,0.0011,2056.7,2056.3,11.10054254]
[1771046574299,0.0011,2056.7,2056.4,1.21571678]
[1771046574815,0.0011,2056.7,2056.3,12.31627843]
[1771046574974,0.0011,2056.7,2056.3,10.65040733]
[1771046575173,0.0011,2056.7,2056.2,3.71178881]
[1771046575589,0.0011,2057.1,2056.4,40.65040733]
[1771046575791,1.21640561,2057.1,2056.7,10.65040733]
[1771046576002,0.48547251,2057.0,2056.5,10.65040733]
[1771046576201,0.48547251,2057.0,2056.5,13.14640733]
[1771046576402,1.7008662,2057.0,2056.5,13.14640733]
[1771046578104,1.7008662,2057.0,2056.5,14.36206427]
[1771046578779,1.7008662,2057.0,2056.5,14.36106427]
[1771046580079,1.21539369,2057.0,2056.5,14.36106427]
[1771046581580,0.48657251,2057.1,2056.5,14.36106427]
[1771046581780,1.70192204,2057.1,2056.5,14.81894177]
[1771046582092,0.46788217,2057.0,2056.5,14.36106427]
[1771046583081,1.68328625,2057.0,2056.5,13.14540733]
[1771046584007,1.68328625,2057.0,2056.5,14.3610616]
[1771046584409,1.68328625,2057.0,2056.5,13.14540733]
[1771046584805,0.46788217,2056.9,2056.5,10.64940733]
[1771046584996,0.46788217,2056.9,2056.5,13.14540733]
[1771046585706,1.68335127,2056.9,2056.5,13.14540733]
[1771046586305,1.68335127,2056.9,2056.5,10.64940733]
[1771046587408,1.68335127,2056.9,2056.4,2.496]
[1771046587784,0.46788217,2056.8,2056.4,2.496]
[1771046589612,0.46788217,2056.8,2056.4,3.71171607]
[1771046590708,1.68335127,2056.9,2056.4,3.71171607]
[1771046591901,1.68335127,2056.9,2056.4,2.496]
[1771046592215,0.46788217,2056.8,2056.3,2.495]
[1771046592584,1.21553945,2056.7,2056.3,2.495]
[1771046593388,1.68342162,2056.7,2056.3,2.495]
[1771046594886,1.68324434,2057.0,2056.3,3.71077207]
[1771046595087,1.21536217,2057.0,2056.5,10.65040733]
[1771046597438,0.46788217,2057.0,2056.5,10.65040733]
[1771046599441,1.68329026,2057.0,2056.5,10.65040733]
[1771046600440,1.68329026,2057.0,2056.5,11.86605333]
[1771046601650,1.21645082,2057.1,2056.5,12.32393083]
[1771046601834,1.68433299,2057.1,2056.5,12.32393083]
[1771046608056,1.21645082,2057.1,2056.6,0.4578775]
[1771046612052,1.21645082,2057.1,2056.6,1.67346711]
[1771046612625,0.451646,2057.0,2056.2,0.001]
[1771046617164,1.21542126,2056.9,2056.2,0.001]
[1771046617366,0.451646,2056.8,2056.2,0.001]
[1771046618843,10.65226942,2056.8,2056.2,0.001]
[1771046619049,0.48348969,2056.7,2056.2,0.001]
[1771046619456,0.48348969,2056.5,2056.2,0.001]
[1771046621768,1.21571678,2056.4,2056.2,0.001]
[1771046630070,1.21553945,2056.7,2056.2,0.48747838]
[1771046630972,1.21552249,2056.8,2056.2,0.48747838]
[1771046634249,0.48348969,2056.7,2056.2,0.001]
[1771046637284,1.21559856,2056.6,2056.2,0.001]
[1771046637852,5.34551205,2056.8,2056.2,0.001]
[1771046638470,5.34551205,2056.8,2056.2,0.48747838]
[1771046641289,1.21548035,2056.8,2056.3,0.46225033]
[1771046641761,1.2154631,2056.9,2056.3,0.46225033]
[1771046642089,1.21540478,2057.0,2056.3,0.46225033]
[1771046643492,1.21540478,2057.0,2056.5,0.46225033]
[1771046646178,4.86239317,2057.1,2056.5,0.46225033]
[1771046647369,4.86239317,2057.1,2056.5,1.67790694]
[1771046647587,4.86239317,2057.1,2056.5,0.46225033]
[1771046649601,4.86239317,2057.1,2056.5,0.46125033]
[1771046651599,4.86239317,2057.1,2056.5,1.67690471]
[1771046651800,4.86239317,2057.1,2056.6,0.46225033]
[1771046652900,4.86239317,2057.1,2056.6,0.46125033]
[1771046656731,4.86239317,2057.1,2056.4,11.86794143]
[1771046656882,5.34832231,2057.1,2056.4,12.33019176]
[1771046657079,5.34832231,2057.1,2056.4,11.11451975]
[1771046657407,0.48592914,2057.0,2056.4,0.46225033]
[1771046660217,1.21542126,2056.9,2056.4,0.46225033]
[1771046662019,1.7013504,2056.9,2056.3,1.21573135]
[1771046662314,1.7013504,2056.9,2056.2,1.67903833]
[1771046662614,1.7013504,2056.9,2056.3,0.46225033]
[1771046664818,1.7013504,2056.9,2056.3,1.67800602]
[1771046665494,1.7013504,2056.9,2056.3,0.46225033]
[1771046665929,0.48592914,2056.8,2056.2,1.21679148]
[1771046666830,0.48592914,2056.8,2056.2,1.67904181]
[1771046667628,1.21553945,2056.7,2056.2,0.46325033]
[1771046667835,1.21553945,2056.7,2056.2,1.67908019]
[1771046673625,4.86168258,2057.0,2056.2,1.67908019]
[1771046673821,1.21544309,2056.9,2056.3,0.46801535]
[1771046674000,1.6940721,2056.9,2056.3,0.46801535]
[1771046674826,1.6940721,2056.9,2056.2,1.68484076]
[1771046675324,0.47862901,2056.8,2056.2,0.001]
[1771046676038,0.47862901,2056.6,2056.2,0.001]
[1771046678838,0.47862901,2056.4,2056.2,0.001]
[1771046679130,0.47862901,2056.4,2056.1,0.001]
[1771046679313,0.47862901,2056.4,2056.0,0.001]
[1771046681641,1.2157759,2056.3,2056.0,0.001]
[1771046685705,1.71117868,2056.3,2056.0,0.001]
[1771046692023,4.20717868,2056.3,2056.0,0.001]
[1771046701346,0.47925197,2056.2,2055.8,0.001]
[1771046701549,0.47925197,2056.1,2055.8,0.001]
[1771046702226,0.47925197,2056.1,2055.7,0.001]
[1771046704353,1.2159533,2056.0,2055.7,0.001]
[1771046706556,4.19120527,2056.0,2055.7,0.001]
[1771046706856,3.7119533,2056.0,2055.7,0.001]
[1771046709356,3.7119533,2056.0,2055.5,0.001]
[1771046709549,3.71195333,2056.0,2055.6,0.47585034]
[1771046709743,2.496,2056.0,2055.6,0.47585034]
[1771046710248,2.496,2056.3,2055.6,0.47585034]
[1771046711964,1.21583503,2056.2,2055.8,0.47585034]
[1771046712760,0.47925197,2056.1,2055.5,0.001]
[1771046712947,3.39173659,2056.0,2055.5,0.001]
[1771046713146,2.91248462,2055.9,2055.5,0.47685034]
[1771046713332,2.91248462,2055.8,2055.5,0.47685034]
[1771046713533,2.91248462,2055.7,2055.5,0.47685034]
[1771046713735,10.65472764,2056.1,2055.5,0.47685034]
[1771046714051,1.2159533,2056.0,2055.5,0.47685034]
[1771046722666,1.2159533,2056.0,2055.5,0.47585034]
[1771046724642,4.86381322,2056.1,2055.5,0.47585034]
[1771046724836,4.86381322,2056.1,2055.6,0.47585034]
[1771046725069,4.86346162,2056.2,2055.6,0.47585034]
[1771046726269,4.86346162,2056.2,2055.6,0.47485034]
[1771046728565,0.47925197,2056.0,2055.4,0.47685034]
[1771046729970,1.21601245,2055.9,2055.4,0.47685034]
[1771046730590,4.86370675,2056.1,2055.5,0.47585034]
[1771046732049,1.21589416,2056.2,2055.6,0.47164013]
[1771046733467,0.45463065,2056.1,2055.4,0.001]
[1771046735174,1.2159533,2056.0,2055.4,0.001]
[1771046735370,1.67058395,2056.0,2055.4,0.001]
[1771046735870,1.2159533,2056.0,2055.4,0.001]
[1771046736056,0.45463065,2055.9,2055.4,0.001]
[1771046737475,1.2160716,2055.8,2055.4,0.001]
[1771046740386,1.68487556,2055.8,2055.4,0.001]
[1771046744877,1.2160716,2055.8,2055.4,0.001]
[1771046747297,7.6150541,2055.9,2055.5,0.48579675]
[1771046747298,3.96680092,2055.9,2055.5,0.48579675]
[1771046747600,3.71303322,2055.9,2055.5,0.48579675]
[1771046748900,2.497,2055.9,2055.5,0.48579675]
[1771046749593,3.71302273,2055.9,2055.5,0.48579675]
[1771046750902,2.497,2055.9,2055.5,1.70204314]
[1771046751398,1.21599359,2056.0,2055.6,0.48579675]
[1771046751600,4.86365079,2056.1,2055.6,0.48579675]
[1771046752683,1.21589416,2056.1,2055.7,0.48579675]
[1771046752883,3.71287987,2056.2,2055.7,0.48579675]
[1771046754589,3.71287987,2056.2,2055.8,0.48579675]
[1771046756800,1.21681678,2056.4,2055.8,0.48579675]
[1771046757008,3.71381678,2056.4,2055.8,0.48579675]
[1771046760925,0.45837985,2056.3,2055.6,0.45443584]
[1771046761225,12.3351042,2056.2,2055.5,0.45443584]
[1771046761592,0.45837985,2056.1,2055.5,0.45443584]
[1771046762101,0.45837985,2056.1,2055.4,0.001]
[1771046763617,1.67433315,2056.0,2055.4,0.001]
[1771046764409,1.67433315,2056.0,2055.4,0.45543584]
[1771046766289,4.86381322,2056.1,2055.5,0.45443584]
[1771046767196,1.2157759,2056.3,2055.5,0.45443584]
[1771046768903,1.2157759,2056.3,2055.6,0.45443584]
[1771046770516,1.67415575,2056.3,2055.6,0.45443584]
[1771046774716,1.60971808,2056.3,2055.6,0.45443584]
[1771046775412,1.15133823,2056.3,2055.6,0.45443584]
[1771046776317,1.15133823,2056.3,2055.6,1.67062427]
[1771046776615,1.15133823,2056.3,2055.7,0.45443584]
[1771046776812,1.15133823,2056.3,2055.8,0.45443584]
[1771046781721,1.60971808,2056.3,2055.6,11.11532516]
[1771046782298,1.60971808,2056.3,2055.6,0.45443584]
[1771046782822,0.45837985,2056.2,2055.6,0.45443584]
[1771046783818,1.21589416,2056.1,2055.6,0.45443584]
[1771046784819,1.67427401,2056.1,2055.4,4.16771472]
[1771046785026,1.67427401,2056.1,2055.4,2.95143584]
[1771046785917,1.67427401,2056.1,2055.4,0.45543584]
[1771046786793,1.67427401,2056.1,2055.4,1.67172986]
[1771046787026,1.21589416,2056.1,2055.5,0.45443584]
[1771046789026,4.86357667,2056.2,2055.6,0.45443584]
[1771046789204,1.21583503,2056.2,2055.6,0.45443584]
[1771046790010,1.21583503,2056.2,2055.7,0.45443584]
[1771046790309,1.21581676,2056.3,2055.7,0.45443584]
[1771046797132,1.21581676,2056.3,2055.7,0.45343584]
[1771046800243,1.21581676,2056.3,2055.7,0.45243584]
[1771046804246,1.21581676,2056.3,2055.8,0.47495954]
[1771046808659,7.35414588,2056.4,2056.0,0.47495954]
[1771046811454,1.47058686,2056.4,2056.0,0.47495954]
[1771046812429,0.0011,2056.4,2056.1,0.47495954]
[1771046812633,1.21682843,2056.4,2055.8,1.69102887]
[1771046813029,1.21682843,2056.4,2055.8,0.47495954]
[1771046813235,1.70127878,2056.4,2055.8,0.47495954]
[1771046815065,1.70127878,2056.4,2055.7,1.21609591]
[1771046815066,0.48445035,2056.3,2055.7,1.21609591]
[1771046815252,0.48445035,2056.3,2055.7,1.69105545]
[1771046815967,0.0011,2056.4,2055.7,1.69105545]
[1771046816262,0.48555035,2056.4,2055.7,1.69105545]
[1771046816629,0.48445035,2056.3,2055.7,0.47495954]
[1771046817730,0.0011,2056.4,2055.7,0.47495954]
[1771046818160,0.0011,2056.4,2055.8,0.47495954]
[1771046820443,0.48555035,2056.4,2055.8,11.87049057]
[1771046820649,0.48555035,2056.4,2055.7,1.69105694]
[1771046820959,0.48555035,2056.4,2055.6,4.18714813]
[1771046821458,10.65445631,2056.2,2055.6,2.496]
[1771046821658,0.48263153,2056.1,2055.4,0.877]
[1771046821961,0.48263153,2056.1,2055.4,2.09328972]
[1771046822332,0.48263153,2056.1,2055.4,0.877]
[1771046822659,1.2159533,2056.0,2055.4,0.877]
[1771046822959,1.69858483,2056.0,2055.4,2.59244011]
[1771046824661,1.21593924,2056.1,2055.6,0.49913791]
[1771046825760,1.21593924,2056.1,2055.6,1.2161784]
[1771046825936,4.86316831,2056.3,2055.7,0.49913791]
[1771046831764,1.2157759,2056.3,2055.8,0.49913791]
[1771046832482,1.69840743,2056.3,2055.6,0.49913791]
[1771046832651,0.48263153,2056.2,2055.6,0.49913791]
[1771046832854,1.69852569,2056.1,2055.4,1.21726721]
[1771046833175,0.48263153,2056.0,2055.4,1.71640512]
[1771046833737,1.21589416,2056.1,2055.5,0.49913791]
[1771046834868,1.21589416,2056.1,2055.5,1.71536858]
[1771046837259,1.21589416,2056.1,2055.6,0.49913791]
[1771046840888,0.48263153,2056.0,2055.5,1.21623067]
[1771046841180,0.48263153,2056.0,2055.4,4.86622983]
[1771046841181,0.48263153,2056.0,2055.4,0.001]
[1771046843392,0.48263153,2055.8,2055.4,0.001]
[1771046846698,1.21613075,2055.7,2055.4,0.001]
[1771046850502,1.69876228,2055.7,2055.4,0.001]
[1771046850673,0.48263153,2055.5,2055.4,0.001]
[1771046851083,0.48263153,2055.5,2055.1,0.001]
[1771046854279,1.2160716,2055.8,2055.1,0.48417987]
[1771046854678,1.68547159,2055.8,2055.1,0.48417987]
[1771046855407,1.2160716,2055.8,2055.1,0.48417987]
[1771046855608,0.46939999,2055.7,2055.1,0.48417987]
[1771046856309,1.21618992,2055.6,2055.1,0.001]
[1771046856483,1.68558991,2055.6,2055.1,0.001]
[1771046857383,0.46939999,2055.5,2055.1,0.001]
[1771046861015,1.21630826,2055.4,2055.1,0.001]
[1771046861600,1.67601463,2055.4,2055.1,0.001]
[1771046862017,1.21630826,2055.4,2055.1,0.001]
[1771046864033,1.67601463,2055.4,2055.1,0.001]
[1771046864216,1.67601463,2055.4,2055.0,0.001]
[1771046866331,1.21630826,2055.4,2055.0,0.001]
[1771046867021,1.21630826,2055.4,2055.0,0.49960473]
[1771046870631,1.21630826,2055.4,2055.0,0.49860473]
[1771046872229,1.21627463,2055.5,2055.0,0.49860473]
[1771046873700,3.71323644,2055.6,2055.1,0.49760473]
[1771046879027,1.21623644,2055.6,2055.1,0.49760473]
[1771046880750,3.71310863,2055.8,2055.2,0.49860473]
[1771046881311,3.71310863,2055.8,2055.3,0.45034829]
[1771046882309,3.71310863,2055.8,2055.1,0.45034829]
[1771046882512,4.16562535,2055.8,2055.1,0.45034829]
[1771046882713,0.45251672,2055.7,2055.0,1.21650724]
[1771046882912,0.45251672,2055.7,2055.0,1.66685553]
[1771046883111,0.45251672,2055.7,2055.0,0.45034829]
[1771046883336,1.21618992,2055.6,2055.0,1.6668882]
[1771046884337,1.21618992,2055.6,2055.1,0.45034829]
[1771046885747,4.86475968,2055.7,2055.2,0.45034829]
[1771046886238,3.71311191,2055.8,2055.2,0.45034829]
[1771046888443,3.71308027,2055.8,2055.3,0.45034829]
[1771046889326,1.21608027,2055.8,2055.3,0.45034829]
[1771046910963,1.70031038,2055.8,2055.1,1.21645781]
[1771046911148,1.70031038,2055.8,2055.1,1.67621781]
[1771046911462,1.70031038,2055.8,2055.1,0.45976]
[1771046916444,1.70031038,2055.8,2055.2,0.45976]
[1771046917469,0.48423011,2055.7,2055.0,12.34031525]
[1771046917658,1.21618992,2055.6,2055.1,0.45976]
[1771046920847,1.21618992,2055.6,2055.1,1.21645955]
[1771046921048,1.21618992,2055.6,2055.2,0.4751052]
[1771046924250,1.47011994,2055.7,2055.3,0.4751052]
[1771046929004,0.25398093,2055.7,2055.4,0.4751052]
[1771046937476,1.4701117,2055.7,2055.4,0.4751052]
[1771046937677,0.25398093,2055.7,2055.4,0.4751052]
[1771046941418,1.47011256,2055.7,2055.4,0.4751052]
[1771046941735,1.47011256,2055.7,2055.2,12.36903518]
[1771046941880,1.47011256,2055.7,2055.2,1.70888959]
[1771046942714,1.47011256,2055.7,2055.1,3.71348006]
[1771046942892,1.47011256,2055.7,2055.1,4.20598968]
[1771046943410,1.47011256,2055.7,2055.1,4.20498968]
[1771046943605,1.41011256,2055.7,2055.2,0.49250962]
[1771046947512,1.41011256,2055.7,2055.2,0.49150962]
[1771046953789,1.41011256,2055.7,2055.2,1.70792418]
[1771046953988,0.19398093,2055.7,2055.2,1.70792418]
[1771046954724,0.19398093,2055.7,2055.2,12.36806977]
[1771046955425,1.41011626,2055.7,2055.2,12.36806977]
[1771046967446,0.45436137,2055.6,2055.0,1.21653995]
[1771046967610,1.41011626,2055.7,2055.1,2.497]
[1771046967810,1.41011626,2055.7,2055.1,2.98950962]
[1771046968433,1.41011626,2055.7,2055.1,13.64965521]
[1771046969636,1.86447763,2055.7,2055.1,14.86611801]
[1771046980519,0.49046453,2055.6,2055.1,2.497]
[1771046980833,0.49046453,2055.6,2055.0,3.71353856]
[1771046981818,0.49046453,2055.6,2055.0,14.85832735]
[1771046982940,1.70667721,2055.6,2055.0,14.8589262]
[1771046998853,0.19398093,2055.7,2055.3,0.4846432]
[1771046999242,1.21608127,2055.8,2055.3,0.4846432]
[1771047001258,1.21608127,2055.8,2055.3,1.70099402]
[1771047001459,1.21608127,2055.8,2055.3,0.4846432]
[1771047002341,1.71137591,2055.8,2055.2,11.8771464]
[1771047003056,0.49529464,2055.7,2055.1,1.71514408]
[1771047003940,1.71143734,2055.7,2055.1,1.71514408]
[1771047004763,1.21610816,2055.8,2055.2,0.4987037]
[1771047006960,1.21610816,2055.8,2055.2,1.71509561]
[1771047008670,1.21610816,2055.8,2055.3,11.15944814]
[1771047008972,1.7124468,2055.9,2055.3,11.15944814]
[1771047009531,1.7124468,2055.9,2055.4,1.21630826]
[1771047012443,1.21715216,2055.9,2055.4,1.71501196]
[1771047017867,1.21715216,2055.9,2055.4,0.4987037]
[1771047018874,1.21715216,2055.9,2055.4,0.4977037]
[1771047020073,1.21715216,2055.9,2055.4,1.71400062]
[1771047022774,1.21715216,2055.9,2055.4,1.71300062]
[1771047025077,0.0011,2055.9,2055.5,11.15944814]
[1771047028178,0.0011,2055.9,2055.5,12.37569555]
[1771047029780,0.0011,2056.1,2055.7,11.15944814]
[1771047030680,1.21699981,2056.1,2055.7,11.15944814]
[1771047030897,1.21699981,2056.1,2055.6,2.497]
[1771047033078,0.0011,2056.1,2055.6,4.18630145]
[1771047044967,0.0011,2056.1,2055.6,14.84088146]
[1771047048171,0.0011,2056.1,2055.6,13.62472259]
[1771047048770,0.47664873,2056.1,2055.6,2.497]
[1771047050397,1.2159533,2056.0,2055.6,2.497]